[Event "*** Titled Tuesday Blitz"]
[Site "Chess.com"]
[Date "2020.05.05"]
[Round "8"]
[White "youngKID"]
[Black "Azatic"]
[Result "0-1"]
[WhiteElo "2775"]
[BlackElo "2643"]
[TimeControl "180+1"]
[EndTime "11:36:13 PDT"]
[Termination "Azatic won on time"]

1. e4 {[%clk 0:03:00.9]} 1... c5 {[%clk 0:02:56.8]} 2. Nf3 {[%clk 0:02:59.7]}
2... e6 {[%clk 0:02:56.6]} 3. d4 {[%clk 0:02:58.5]} 3... cxd4 {[%clk 0:02:57.5]}
4. Nxd4 {[%clk 0:02:59.3]} 4... a6 {[%clk 0:02:56.2]} 5. c4 {[%clk 0:02:58.2]}
5... Qc7 {[%clk 0:02:56.3]} 6. Nc3 {[%clk 0:02:57.8]} 6... Nf6 {[%clk
0:02:52.7]} 7. Be2 {[%clk 0:02:55.1]} 7... Be7 {[%clk 0:02:52.8]} 8. Be3 {[%clk
0:02:53]} 8... O-O {[%clk 0:02:52.6]} 9. O-O {[%clk 0:02:52.8]} 9... b6 {[%clk
0:02:52.3]} 10. Qd2 {[%clk 0:02:51.4]} 10... Bb7 {[%clk 0:02:52.2]} 11. f3
{[%clk 0:02:51.9]} 11... d6 {[%clk 0:02:46.6]} 12. Rfc1 {[%clk 0:02:51.1]} 12...
Nbd7 {[%clk 0:02:41.6]} 13. Kh1 {[%clk 0:02:49.9]} 13... h5 {[%clk 0:02:33.4]}
14. a4 {[%clk 0:02:46.2]} 14... Ne5 {[%clk 0:02:31]} 15. a5 {[%clk 0:02:38.8]}
15... bxa5 {[%clk 0:02:31.9]} 16. Nb3 {[%clk 0:02:38.7]} 16... Nc6 {[%clk
0:02:28.2]} 17. Nd5 {[%clk 0:02:37.2]} 17... exd5 {[%clk 0:02:19.8]} 18. cxd5
{[%clk 0:02:37.1]} 18... Qd7 {[%clk 0:02:17.6]} 19. dxc6 {[%clk 0:02:36.9]}
19... Bxc6 {[%clk 0:02:18.5]} 20. Rxa5 {[%clk 0:02:30.1]} 20... Bb7 {[%clk
0:02:00.2]} 21. e5 {[%clk 0:02:04.4]} 21... dxe5 {[%clk 0:01:49.8]} 22. Qxd7
{[%clk 0:02:02.5]} 22... Nxd7 {[%clk 0:01:50.7]} 23. Rc7 {[%clk 0:02:02]} 23...
Bc8 {[%clk 0:01:51]} 24. Rc1 {[%clk 0:01:14.1]} 24... Rb8 {[%clk 0:01:34.8]} 25.
Bc4 {[%clk 0:01:11.9]} 25... Nb6 {[%clk 0:01:28.7]} 26. Bxb6 {[%clk 0:01:04.9]}
26... Rxb6 {[%clk 0:01:28.2]} 27. Rxe5 {[%clk 0:01:05.5]} 27... Bf6 {[%clk
0:01:23.2]} 28. Rxh5 {[%clk 0:01:03.4]} 28... g6 {[%clk 0:01:08.7]} 29. Rc5
{[%clk 0:00:58.9]} 29... Bf5 {[%clk 0:01:08.6]} 30. g4 {[%clk 0:00:50.6]} 30...
Bd7 {[%clk 0:00:42.4]} 31. Rc7 {[%clk 0:00:38.4]} 31... Rd6 {[%clk 0:00:16.7]}
32. Rc2 {[%clk 0:00:07.8]} 32... Bb5 {[%clk 0:00:08.8]} 33. Bxb5 {[%clk
0:00:07]} 33... Rd1+ {[%clk 0:00:06.5]} 34. Kg2 {[%clk 0:00:06.6]} 34... axb5
{[%clk 0:00:06.5]} 35. Nc5 {[%clk 0:00:07]} 35... Rfd8 {[%clk 0:00:05.8]} 36.
Ne4 {[%clk 0:00:06.7]} 36... Be5 {[%clk 0:00:05.9]} 37. R7c5 {[%clk 0:00:06.9]}
37... Bd4 {[%clk 0:00:05.8]} 38. Rxb5 {[%clk 0:00:06]} 38... Be3 {[%clk
0:00:04.7]} 39. Nf2 {[%clk 0:00:05.5]} 39... R1d2 {[%clk 0:00:04]} 40. Rbc5
{[%clk 0:00:02.5]} 40... Bxf2 {[%clk 0:00:04.1]} 41. Rxd2 {[%clk 0:00:02.1]}
41... Rxd2 {[%clk 0:00:05]} 42. Rc8+ {[%clk 0:00:01.9]} 42... Kg7 {[%clk
0:00:05.1]} 43. f4 {[%clk 0:00:01.3]} 43... Bd4+ {[%clk 0:00:05.5]} 0-1

[Event "*** Titled Tuesday Blitz"]
[Site "Chess.com"]
[Date "2020.05.05"]
[Round "8"]
[White "CarlssonLudvig"]
[Black "queen_iryna"]
[Result "1-0"]
[WhiteElo "2451"]
[BlackElo "2292"]
[TimeControl "180+1"]
[EndTime "11:36:13 PDT"]
[Termination "CarlssonLudvig won by resignation"]

1. e4 {[%clk 0:03:00.9]} 1... d6 {[%clk 0:02:59.4]} 2. d4 {[%clk 0:02:59.3]}
2... Nf6 {[%clk 0:02:58.7]} 3. Nc3 {[%clk 0:02:58.7]} 3... e5 {[%clk 0:02:58.7]}
4. Nf3 {[%clk 0:02:55.9]} 4... Nbd7 {[%clk 0:02:56.9]} 5. Bc4 {[%clk 0:02:55.3]}
5... Be7 {[%clk 0:02:55.5]} 6. O-O {[%clk 0:02:54.5]} 6... O-O {[%clk
0:02:54.4]} 7. Re1 {[%clk 0:02:54.2]} 7... c6 {[%clk 0:02:53.6]} 8. a4 {[%clk
0:02:53.6]} 8... h6 {[%clk 0:02:53.8]} 9. h3 {[%clk 0:02:49]} 9... Re8 {[%clk
0:02:53.5]} 10. Be3 {[%clk 0:02:35]} 10... Bf8 {[%clk 0:02:49.4]} 11. a5 {[%clk
0:02:15.9]} 11... exd4 {[%clk 0:02:31.7]} 12. Nxd4 {[%clk 0:02:16.8]} 12... Ne5
{[%clk 0:01:41.2]} 13. Bb3 {[%clk 0:02:10.8]} 13... c5 {[%clk 0:01:31.2]} 14.
Nf5 {[%clk 0:02:05.4]} 14... Bxf5 {[%clk 0:01:30.3]} 15. exf5 {[%clk 0:02:05.2]}
15... Rc8 {[%clk 0:01:05.1]} 16. f4 {[%clk 0:02:04.3]} 16... Nc6 {[%clk
0:01:04.8]} 17. a6 {[%clk 0:01:59.7]} 17... b6 {[%clk 0:01:01.9]} 18. Nd5 {[%clk
0:01:56.1]} 18... Nxd5 {[%clk 0:01:01.2]} 19. Bxd5 {[%clk 0:01:52.6]} 19... Qf6
{[%clk 0:00:55.3]} 20. Bxc6 {[%clk 0:01:37]} 20... Rxc6 {[%clk 0:00:54.7]} 21.
Qd5 {[%clk 0:01:37.4]} 21... Rc7 {[%clk 0:00:45.5]} 22. c3 {[%clk 0:01:36.6]}
22... Rce7 {[%clk 0:00:21.3]} 23. Bf2 {[%clk 0:01:31.9]} 23... Rxe1+ {[%clk
0:00:21.3]} 24. Rxe1 {[%clk 0:01:30.4]} 24... Rxe1+ {[%clk 0:00:21.8]} 25. Bxe1
{[%clk 0:01:31.1]} 25... Qe7 {[%clk 0:00:22.3]} 26. Kf1 {[%clk 0:01:04.4]} 26...
Qe3 {[%clk 0:00:20.6]} 27. Qc4 {[%clk 0:00:57.5]} 27... Qe7 {[%clk 0:00:18.5]}
28. Bd2 {[%clk 0:00:55.1]} 28... Qd7 {[%clk 0:00:17.5]} 29. Qd3 {[%clk
0:00:49.8]} 29... Qc8 {[%clk 0:00:16.6]} 30. c4 {[%clk 0:00:48.1]} 30... Qxa6
{[%clk 0:00:16.2]} 31. f6 {[%clk 0:00:47.1]} 31... Qa1+ {[%clk 0:00:15.7]} 32.
Kf2 {[%clk 0:00:45.5]} 32... Qxb2 {[%clk 0:00:16.3]} 33. fxg7 {[%clk 0:00:43.7]}
33... Qxg7 {[%clk 0:00:17.2]} 34. f5 {[%clk 0:00:40.9]} 34... Qd4+ {[%clk
0:00:17.1]} 35. Qxd4 {[%clk 0:00:39.8]} 35... cxd4 {[%clk 0:00:18]} 36. Kf3
{[%clk 0:00:36.3]} 36... Bg7 {[%clk 0:00:18]} 37. Ke4 {[%clk 0:00:36.6]} 37...
a5 {[%clk 0:00:17.9]} 38. Bc1 {[%clk 0:00:33.8]} 38... a4 {[%clk 0:00:17.9]} 39.
Ba3 {[%clk 0:00:34]} 39... Be5 {[%clk 0:00:16.2]} 40. g4 {[%clk 0:00:33]} 40...
Kf8 {[%clk 0:00:16]} 41. h4 {[%clk 0:00:31.2]} 41... Ke7 {[%clk 0:00:16.1]} 42.
g5 {[%clk 0:00:31.3]} 42... hxg5 {[%clk 0:00:16.3]} 43. hxg5 {[%clk 0:00:32.2]}
43... Kf8 {[%clk 0:00:16.6]} 44. Bb2 {[%clk 0:00:17.7]} 44... Ke7 {[%clk
0:00:16]} 45. Ba3 {[%clk 0:00:17.6]} 45... Kd7 {[%clk 0:00:16]} 46. Bb2 {[%clk
0:00:15.7]} 46... Kc6 {[%clk 0:00:15.8]} 47. Bxd4 {[%clk 0:00:13.1]} 47... Bxd4
{[%clk 0:00:15.6]} 48. Kxd4 {[%clk 0:00:14]} 48... Kd7 {[%clk 0:00:15.4]} 49.
Kc3 {[%clk 0:00:11.8]} 49... d5 {[%clk 0:00:12.5]} 50. cxd5 {[%clk 0:00:11]}
50... b5 {[%clk 0:00:10.7]} 51. g6 {[%clk 0:00:10.4]} 51... fxg6 {[%clk
0:00:10.2]} 52. fxg6 {[%clk 0:00:11.3]} 52... Ke7 {[%clk 0:00:10.5]} 53. Kb4
{[%clk 0:00:11.4]} 53... Kf6 {[%clk 0:00:10.1]} 54. d6 {[%clk 0:00:11.6]} 54...
Kxg6 {[%clk 0:00:09.9]} 55. d7 {[%clk 0:00:12]} 1-0

[Event "*** Titled Tuesday Blitz"]
[Site "Chess.com"]
[Date "2020.05.05"]
[Round "8"]
[White "SlavenPastar"]
[Black "IMinTheWings"]
[Result "1-0"]
[WhiteElo "2357"]
[BlackElo "2181"]
[TimeControl "180+1"]
[EndTime "11:36:13 PDT"]
[Termination "SlavenPastar won by checkmate"]

1. e4 {[%clk 0:03:00.9]} 1... g6 {[%clk 0:02:54.8]} 2. d4 {[%clk 0:02:59.2]}
2... Bg7 {[%clk 0:02:55.4]} 3. c4 {[%clk 0:02:58.2]} 3... c5 {[%clk 0:02:55.3]}
4. d5 {[%clk 0:02:58.1]} 4... d6 {[%clk 0:02:55.1]} 5. Bd3 {[%clk 0:02:57.3]}
5... Nf6 {[%clk 0:02:54.9]} 6. Ne2 {[%clk 0:02:57.6]} 6... O-O {[%clk
0:02:55.3]} 7. Nbc3 {[%clk 0:02:58.1]} 7... a6 {[%clk 0:02:54.9]} 8. O-O {[%clk
0:02:56.5]} 8... e6 {[%clk 0:02:53.9]} 9. h3 {[%clk 0:02:53.7]} 9... exd5 {[%clk
0:02:53.9]} 10. exd5 {[%clk 0:02:54.6]} 10... Nbd7 {[%clk 0:02:50.9]} 11. f4
{[%clk 0:02:53.5]} 11... Re8 {[%clk 0:02:48.3]} 12. a4 {[%clk 0:02:50.7]} 12...
b6 {[%clk 0:02:38.5]} 13. Ng3 {[%clk 0:02:49.6]} 13... Rb8 {[%clk 0:02:36.7]}
14. Qf3 {[%clk 0:02:42.4]} 14... Qc7 {[%clk 0:02:29]} 15. Bd2 {[%clk 0:02:41.2]}
15... Bb7 {[%clk 0:02:03.8]} 16. Rfe1 {[%clk 0:02:40.7]} 16... Nf8 {[%clk
0:02:00.2]} 17. Kh2 {[%clk 0:02:09]} 17... N6d7 {[%clk 0:01:51]} 18. Nge4 {[%clk
0:01:58.4]} 18... h6 {[%clk 0:01:39.4]} 19. Nf2 {[%clk 0:01:47.2]} 19... Ba8
{[%clk 0:01:16]} 20. Qg4 {[%clk 0:01:37.2]} 20... f5 {[%clk 0:01:13.4]} 21. Qh4
{[%clk 0:01:33.6]} 21... Nf6 {[%clk 0:00:58]} 22. g4 {[%clk 0:01:32.6]} 22...
fxg4 {[%clk 0:00:58]} 23. hxg4 {[%clk 0:01:33.5]} 23... b5 {[%clk 0:00:56.7]}
24. axb5 {[%clk 0:01:30.7]} 24... axb5 {[%clk 0:00:56.9]} 25. Nxb5 {[%clk
0:01:22.7]} 25... Rxb5 {[%clk 0:00:56.3]} 26. cxb5 {[%clk 0:01:17.9]} 26... Rxe1
{[%clk 0:00:56.1]} 27. Rxe1 {[%clk 0:01:05.8]} 27... Nxd5 {[%clk 0:00:49.1]} 28.
Bc4 {[%clk 0:00:48.5]} 28... Kh7 {[%clk 0:00:47]} 29. g5 {[%clk 0:00:46.8]}
29... h5 {[%clk 0:00:46.1]} 30. f5 {[%clk 0:00:43.5]} 30... Qf7 {[%clk
0:00:37.3]} 31. f6 {[%clk 0:00:38.6]} 31... Bh8 {[%clk 0:00:34.8]} 32. Re7
{[%clk 0:00:34.9]} 32... Qxe7 {[%clk 0:00:25.6]} 33. fxe7 {[%clk 0:00:33.5]}
33... Nxe7 {[%clk 0:00:26.5]} 34. Bc3 {[%clk 0:00:26.2]} 34... Nf5 {[%clk
0:00:24.3]} 35. Qf4 {[%clk 0:00:24]} 35... Bxc3 {[%clk 0:00:20.8]} 36. bxc3
{[%clk 0:00:24.9]} 36... Kg7 {[%clk 0:00:20.9]} 37. Ne4 {[%clk 0:00:19.1]} 37...
d5 {[%clk 0:00:20.4]} 38. Qe5+ {[%clk 0:00:19]} 38... Kg8 {[%clk 0:00:20.5]} 39.
Nf6+ {[%clk 0:00:18.9]} 39... Kh8 {[%clk 0:00:20.4]} 40. Nxh5+ {[%clk
0:00:16.3]} 40... Kh7 {[%clk 0:00:19.5]} 41. Qc7+ {[%clk 0:00:14.8]} 41... Kh8
{[%clk 0:00:17.9]} 42. Qb8 {[%clk 0:00:12.8]} 42... Kg8 {[%clk 0:00:11.7]} 43.
Qxa8 {[%clk 0:00:11.6]} 43... dxc4 {[%clk 0:00:11.9]} 44. Nf6+ {[%clk
0:00:11.9]} 44... Kf7 {[%clk 0:00:12]} 45. Qb7+ {[%clk 0:00:11.7]} 45... Ne7
{[%clk 0:00:12.5]} 46. Nd5 {[%clk 0:00:09.1]} 46... Ke6 {[%clk 0:00:11.9]} 47.
Qxe7+ {[%clk 0:00:07.8]} 47... Kxd5 {[%clk 0:00:12.1]} 48. Qxf8 {[%clk
0:00:08.7]} 48... Ke4 {[%clk 0:00:11.7]} 49. Qf6 {[%clk 0:00:08.5]} 49... Kd3
{[%clk 0:00:12]} 50. b6 {[%clk 0:00:08.6]} 50... Kc2 {[%clk 0:00:12.4]} 51. b7
{[%clk 0:00:09.5]} 51... Kc1 {[%clk 0:00:12]} 52. b8=Q {[%clk 0:00:10.4]} 52...
Kc2 {[%clk 0:00:12.5]} 53. Qf2+ {[%clk 0:00:10.2]} 53... Kc1 {[%clk 0:00:12.8]}
54. Qbb2+ {[%clk 0:00:10.2]} 54... Kd1 {[%clk 0:00:12.8]} 55. Qa1# {[%clk
0:00:10.7]} 1-0

[Event "*** Titled Tuesday Blitz"]
[Site "Chess.com"]
[Date "2020.05.05"]
[Round "8"]
[White "Walter_White_Poland"]
[Black "Kaponov"]
[Result "1-0"]
[WhiteElo "2161"]
[BlackElo "2058"]
[TimeControl "180+1"]
[EndTime "11:36:13 PDT"]
[Termination "Walter_White_Poland won on time"]

1. e4 {[%clk 0:03:00.9]} 1... e6 {[%clk 0:02:58.2]} 2. d4 {[%clk 0:03:00.3]}
2... d5 {[%clk 0:02:58.4]} 3. Nc3 {[%clk 0:03:00.5]} 3... Nf6 {[%clk 0:02:58.4]}
4. Bg5 {[%clk 0:02:59.6]} 4... dxe4 {[%clk 0:02:57.6]} 5. Nxe4 {[%clk
0:02:58.3]} 5... Be7 {[%clk 0:02:58.1]} 6. Bxf6 {[%clk 0:02:58.5]} 6... Bxf6
{[%clk 0:02:58.7]} 7. Nf3 {[%clk 0:02:59.1]} 7... Nd7 {[%clk 0:02:58.8]} 8. Qd2
{[%clk 0:02:58.6]} 8... Qe7 {[%clk 0:02:52.2]} 9. O-O-O {[%clk 0:02:58]} 9... b6
{[%clk 0:02:22.3]} 10. Bb5 {[%clk 0:02:28.8]} 10... Bb7 {[%clk 0:02:18.5]} 11.
Nxf6+ {[%clk 0:02:26.1]} 11... gxf6 {[%clk 0:02:13]} 12. Qc3 {[%clk 0:02:19.4]}
12... O-O-O {[%clk 0:02:11.3]} 13. Rhe1 {[%clk 0:02:15]} 13... Qd6 {[%clk
0:02:00.3]} 14. g3 {[%clk 0:01:55.9]} 14... Nb8 {[%clk 0:01:49]} 15. Be2 {[%clk
0:01:46.5]} 15... Qd5 {[%clk 0:01:30.6]} 16. Kb1 {[%clk 0:01:44.6]} 16... Nc6
{[%clk 0:01:25]} 17. a3 {[%clk 0:01:43]} 17... Qa5 {[%clk 0:01:16.3]} 18. Qxa5
{[%clk 0:01:30.2]} 18... Nxa5 {[%clk 0:01:16.4]} 19. b3 {[%clk 0:01:29.2]} 19...
Rd6 {[%clk 0:01:12.3]} 20. Kc1 {[%clk 0:01:22.8]} 20... Rhd8 {[%clk 0:01:11.8]}
21. Ng1 {[%clk 0:01:20.8]} 21... Rxd4 {[%clk 0:01:08.5]} 22. Rxd4 {[%clk
0:01:17.7]} 22... Rxd4 {[%clk 0:01:08.6]} 23. Bd3 {[%clk 0:01:17.6]} 23... h6
{[%clk 0:01:05.4]} 24. Ne2 {[%clk 0:01:17.5]} 24... Rd6 {[%clk 0:01:04.2]} 25.
Nf4 {[%clk 0:01:17.2]} 25... Nc6 {[%clk 0:01:01.7]} 26. Nh5 {[%clk 0:01:17]}
26... e5 {[%clk 0:00:58.4]} 27. Bf5+ {[%clk 0:01:11.9]} 27... Kd8 {[%clk
0:00:54.4]} 28. c3 {[%clk 0:01:06.1]} 28... Ne7 {[%clk 0:00:54.2]} 29. Ng7
{[%clk 0:00:59]} 29... Bc8 {[%clk 0:00:38]} 30. Bxc8 {[%clk 0:00:45]} 30... Kxc8
{[%clk 0:00:37.3]} 31. Re3 {[%clk 0:00:42.3]} 31... Kd7 {[%clk 0:00:36.5]} 32.
Kc2 {[%clk 0:00:40.5]} 32... Nd5 {[%clk 0:00:32.2]} 33. Rf3 {[%clk 0:00:39.7]}
33... Rc6 {[%clk 0:00:16.3]} 34. c4 {[%clk 0:00:38.2]} 34... b5 {[%clk
0:00:14.7]} 35. Rd3 {[%clk 0:00:38.1]} 35... bxc4 {[%clk 0:00:09.8]} 36. Rxd5+
{[%clk 0:00:38]} 36... Ke7 {[%clk 0:00:08.7]} 37. Ra5 {[%clk 0:00:37.7]} 37...
cxb3+ {[%clk 0:00:08.7]} 38. Kxb3 {[%clk 0:00:37.9]} 38... Kf8 {[%clk
0:00:08.8]} 39. Nf5 {[%clk 0:00:37.4]} 39... Rb6+ {[%clk 0:00:08.4]} 40. Kc3
{[%clk 0:00:37]} 40... Rc6+ {[%clk 0:00:08]} 41. Kd3 {[%clk 0:00:37.2]} 41... a6
{[%clk 0:00:08.4]} 42. Ra4 {[%clk 0:00:36.5]} 42... Ke8 {[%clk 0:00:08.5]} 43.
Nxh6 {[%clk 0:00:35.4]} 43... Rb6 {[%clk 0:00:07.3]} 44. Nf5 {[%clk 0:00:32.4]}
44... Rb2 {[%clk 0:00:05.9]} 45. Ke3 {[%clk 0:00:32.2]} 45... Rb3+ {[%clk
0:00:04.5]} 46. Ke2 {[%clk 0:00:31.7]} 46... Rb2+ {[%clk 0:00:05]} 47. Kf3
{[%clk 0:00:31.2]} 47... Kd7 {[%clk 0:00:03.6]} 48. h4 {[%clk 0:00:30.2]} 48...
Ke6 {[%clk 0:00:02.8]} 49. g4 {[%clk 0:00:30]} 49... e4+ {[%clk 0:00:01.9]} 50.
Ke3 {[%clk 0:00:26]} 1-0

[Event "*** Titled Tuesday Blitz"]
[Site "Chess.com"]
[Date "2020.05.05"]
[Round "8"]
[White "MathiasWomacka"]
[Black "MightyGMpretender"]
[Result "0-1"]
[WhiteElo "2446"]
[BlackElo "2580"]
[TimeControl "180+1"]
[EndTime "11:36:15 PDT"]
[Termination "MightyGMpretender won on time"]

1. e4 {[%clk 0:03:00.9]} 1... c5 {[%clk 0:02:59.8]} 2. Nf3 {[%clk 0:03:00.2]}
2... d6 {[%clk 0:02:57.1]} 3. d4 {[%clk 0:03:00]} 3... cxd4 {[%clk 0:02:53.6]}
4. Nxd4 {[%clk 0:03:00.9]} 4... Nf6 {[%clk 0:02:51.8]} 5. Nc3 {[%clk 0:03:00.9]}
5... a6 {[%clk 0:02:52.3]} 6. Be2 {[%clk 0:02:59.5]} 6... e5 {[%clk 0:02:51.1]}
7. Nb3 {[%clk 0:02:59.4]} 7... Be7 {[%clk 0:02:50.2]} 8. O-O {[%clk 0:02:59.2]}
8... O-O {[%clk 0:02:48.9]} 9. Qd3 {[%clk 0:02:56.7]} 9... Be6 {[%clk
0:02:45.5]} 10. Bd2 {[%clk 0:02:56.8]} 10... Nbd7 {[%clk 0:02:45]} 11. Nd5
{[%clk 0:02:53.9]} 11... Rc8 {[%clk 0:02:25.7]} 12. c4 {[%clk 0:02:41.2]} 12...
Re8 {[%clk 0:02:18.4]} 13. Rac1 {[%clk 0:02:35.6]} 13... Bf8 {[%clk 0:02:17.7]}
14. Be3 {[%clk 0:02:06.5]} 14... a5 {[%clk 0:02:13.7]} 15. f3 {[%clk 0:01:56]}
15... a4 {[%clk 0:02:04.9]} 16. Nd2 {[%clk 0:01:45.8]} 16... Nc5 {[%clk
0:02:05.2]} 17. Qb1 {[%clk 0:01:45.3]} 17... Nxd5 {[%clk 0:01:41.7]} 18. cxd5
{[%clk 0:01:44.5]} 18... Bd7 {[%clk 0:01:42]} 19. b4 {[%clk 0:01:35.3]} 19...
axb3 {[%clk 0:01:41.6]} 20. axb3 {[%clk 0:01:35.8]} 20... Be7 {[%clk 0:01:41.3]}
21. b4 {[%clk 0:01:13.3]} 21... Bg5 {[%clk 0:01:20.1]} 22. Bxg5 {[%clk
0:00:47.7]} 22... Qxg5 {[%clk 0:01:21]} 23. f4 {[%clk 0:00:45.2]} 23... exf4
{[%clk 0:01:14.7]} 24. bxc5 {[%clk 0:00:40.8]} 24... dxc5 {[%clk 0:01:08.6]} 25.
Qxb7 {[%clk 0:00:34.3]} 25... Bh3 {[%clk 0:01:08.4]} 26. Bf3 {[%clk 0:00:34]}
26... Rb8 {[%clk 0:01:02.3]} 27. Qa7 {[%clk 0:00:30.5]} 27... Rb2 {[%clk
0:01:00]} 28. Rf2 {[%clk 0:00:21.6]} 28... c4 {[%clk 0:00:40.9]} 29. Qd4 {[%clk
0:00:20.5]} 29... Reb8 {[%clk 0:00:40.6]} 30. Nxc4 {[%clk 0:00:18.7]} 30... Rb1
{[%clk 0:00:40.2]} 31. Rxb1 {[%clk 0:00:16.3]} 31... Rxb1+ {[%clk 0:00:40.8]}
32. Rf1 {[%clk 0:00:17.2]} 32... Rb8 {[%clk 0:00:39.2]} 33. e5 {[%clk
0:00:15.2]} 33... Bd7 {[%clk 0:00:36.1]} 34. Nd6 {[%clk 0:00:14.6]} 34... h5
{[%clk 0:00:32]} 35. Ne4 {[%clk 0:00:14.3]} 35... Qg6 {[%clk 0:00:27.6]} 36. Nc5
{[%clk 0:00:14.3]} 36... Qb6 {[%clk 0:00:26.1]} 37. Qf2 {[%clk 0:00:12.5]} 37...
Bf5 {[%clk 0:00:21.4]} 38. Bxh5 {[%clk 0:00:11.1]} 38... g6 {[%clk 0:00:18.1]}
39. Bf3 {[%clk 0:00:10.2]} 39... Rc8 {[%clk 0:00:18.3]} 40. Ne4 {[%clk
0:00:09.4]} 40... Qb4 {[%clk 0:00:17.3]} 41. Nd6 {[%clk 0:00:07.4]} 41... Rc2
{[%clk 0:00:16.1]} 42. Qh4 {[%clk 0:00:07.4]} 42... Qd4+ {[%clk 0:00:16.2]} 43.
Kh1 {[%clk 0:00:06.8]} 43... Bd3 {[%clk 0:00:16]} 44. Qd8+ {[%clk 0:00:04.8]}
44... Kg7 {[%clk 0:00:15.7]} 45. Ne8+ {[%clk 0:00:04.4]} 45... Kf8 {[%clk
0:00:13.5]} 46. Nf6+ {[%clk 0:00:04.1]} 46... Kg7 {[%clk 0:00:13.8]} 47. Qg8+
{[%clk 0:00:04]} 47... Kh6 {[%clk 0:00:14.7]} 48. Qh7+ {[%clk 0:00:01.2]} 48...
Kg5 {[%clk 0:00:15.1]} 0-1

[Event "*** Titled Tuesday Blitz"]
[Site "Chess.com"]
[Date "2020.05.05"]
[Round "8"]
[White "Titus369"]
[Black "Morshynska"]
[Result "0-1"]
[WhiteElo "2484"]
[BlackElo "2144"]
[TimeControl "180+1"]
[EndTime "11:36:15 PDT"]
[Termination "Morshynska won by resignation"]

1. e4 {[%clk 0:03:00.9]} 1... Nc6 {[%clk 0:02:58.9]} 2. d4 {[%clk 0:03:00.3]}
2... d6 {[%clk 0:02:58.7]} 3. Nf3 {[%clk 0:02:58]} 3... g6 {[%clk 0:02:58.5]} 4.
h3 {[%clk 0:02:55.2]} 4... Bg7 {[%clk 0:02:58]} 5. Nc3 {[%clk 0:02:50.1]} 5...
Nf6 {[%clk 0:02:55.9]} 6. Bc4 {[%clk 0:02:44.8]} 6... e6 {[%clk 0:02:52.6]} 7.
Qe2 {[%clk 0:02:43.4]} 7... O-O {[%clk 0:02:49]} 8. Bg5 {[%clk 0:02:38.4]} 8...
h6 {[%clk 0:02:46.1]} 9. Bd2 {[%clk 0:02:19.3]} 9... d5 {[%clk 0:02:36]} 10.
exd5 {[%clk 0:01:56]} 10... exd5 {[%clk 0:02:36.9]} 11. Bd3 {[%clk 0:01:56.1]}
11... Re8 {[%clk 0:02:35]} 12. Be3 {[%clk 0:01:56]} 12... Ne4 {[%clk 0:02:29.7]}
13. O-O {[%clk 0:01:44.5]} 13... f5 {[%clk 0:02:11.1]} 14. Nxd5 {[%clk
0:01:39.3]} 14... Kh7 {[%clk 0:02:06]} 15. c4 {[%clk 0:01:32.4]} 15... Be6
{[%clk 0:01:45.6]} 16. Nf4 {[%clk 0:01:24.5]} 16... Nxd4 {[%clk 0:01:26.1]} 17.
Nxd4 {[%clk 0:01:17.4]} 17... Bxd4 {[%clk 0:01:27]} 18. Bxe4 {[%clk 0:01:16.7]}
18... fxe4 {[%clk 0:01:22.4]} 19. Rad1 {[%clk 0:00:31.9]} 19... c5 {[%clk
0:01:19.2]} 20. b4 {[%clk 0:00:16.7]} 20... b6 {[%clk 0:01:17.1]} 21. bxc5
{[%clk 0:00:16.9]} 21... bxc5 {[%clk 0:01:18]} 22. Qd2 {[%clk 0:00:15.8]} 22...
Bxc4 {[%clk 0:01:13.1]} 23. Rfe1 {[%clk 0:00:15.3]} 23... g5 {[%clk 0:00:42.2]}
24. Nh5 {[%clk 0:00:12.5]} 24... Kg6 {[%clk 0:00:36.5]} 25. Ng3 {[%clk
0:00:11.1]} 25... Bd3 {[%clk 0:00:33.2]} 26. Bxd4 {[%clk 0:00:07.9]} 26... Qxd4
{[%clk 0:00:27.9]} 27. Qa5 {[%clk 0:00:07.9]} 27... Rf8 {[%clk 0:00:21.7]} 28.
Re3 {[%clk 0:00:06.8]} 28... Rxf2 {[%clk 0:00:19.3]} 29. Rdxd3 {[%clk
0:00:04.7]} 29... exd3 {[%clk 0:00:15.5]} 30. Qa6+ {[%clk 0:00:02.3]} 30... Rf6
{[%clk 0:00:13.9]} 31. Qxd3+ {[%clk 0:00:03.2]} 31... Qxd3 {[%clk 0:00:13.7]}
32. Rxd3 {[%clk 0:00:04.1]} 32... c4 {[%clk 0:00:13.7]} 33. Rc3 {[%clk
0:00:04.1]} 33... Rc6 {[%clk 0:00:13.7]} 34. Ne4 {[%clk 0:00:04.5]} 34... Rb8
{[%clk 0:00:13.5]} 35. Kf2 {[%clk 0:00:03.9]} 35... Rb2+ {[%clk 0:00:13.1]} 36.
Ke3 {[%clk 0:00:04.5]} 36... Rxa2 {[%clk 0:00:13.3]} 37. Nd2 {[%clk 0:00:05.1]}
37... Ra5 {[%clk 0:00:07]} 38. Nf3 {[%clk 0:00:05.2]} 38... Rac5 {[%clk
0:00:06.3]} 39. Kd4 {[%clk 0:00:05.1]} 39... Rc8 {[%clk 0:00:05.5]} 40. Ne5+
{[%clk 0:00:04.9]} 40... Kg7 {[%clk 0:00:04.8]} 41. Nxc4 {[%clk 0:00:04.5]}
41... Rxc4+ {[%clk 0:00:04.8]} 42. Rxc4 {[%clk 0:00:05.4]} 42... Rxc4+ {[%clk
0:00:05.4]} 43. Kxc4 {[%clk 0:00:06.3]} 43... Kf6 {[%clk 0:00:05.7]} 44. Kb5
{[%clk 0:00:06.5]} 44... Ke5 {[%clk 0:00:06.6]} 45. g3 {[%clk 0:00:06.3]} 45...
Ke4 {[%clk 0:00:06.1]} 46. Ka6 {[%clk 0:00:06.8]} 46... Kf3 {[%clk 0:00:06.8]}
47. h4 {[%clk 0:00:07.7]} 47... Kxg3 {[%clk 0:00:07.2]} 48. hxg5 {[%clk
0:00:08.6]} 48... hxg5 {[%clk 0:00:07.8]} 49. Kxa7 {[%clk 0:00:09.4]} 49... g4
{[%clk 0:00:08.7]} 50. Kb6 {[%clk 0:00:10.3]} 50... Kf3 {[%clk 0:00:08.7]} 51.
Kc5 {[%clk 0:00:11.2]} 51... g3 {[%clk 0:00:09.6]} 52. Kd4 {[%clk 0:00:12.1]}
52... g2 {[%clk 0:00:10.5]} 53. Kd3 {[%clk 0:00:13]} 53... g1=Q {[%clk
0:00:10.8]} 54. Kd2 {[%clk 0:00:13.9]} 54... Qe3+ {[%clk 0:00:10.6]} 55. Kc2
{[%clk 0:00:14.8]} 55... Qd4 {[%clk 0:00:10]} 0-1